Workbook

Sheet Important Info
B2: INSTRUCTIONS FOR ESL CALCULATOR
B4: 1 | C4: Choose between the 1 week or 2 week calculator in order to provide an accurate snapshot of ESL services provided to the student. 1 week calculator: Use this calculator when the same services are scheduled each week. 2 week calculator: Use this calculator when there is an every other week rotating schedule for services. When using the 2 week calculator, time must be entered into both weeks for the formula to operate correctly.
B5: 2 | C5: Complete student information, district information, teacher information and ESL provider information at top of worksheet.
B6: 3 | C6: Complete provider (use initials), start time, and end time in table. Please input in sequential order (i.e. 8am then 9am).
B7: 4 | C7: Complete signature area by typing in ESL Director or Teacher name. Then type in date completed. No need to print and sign
B8: 5 | C8: Average Daily Minutes calculated should be entered in KIDS.
B9: 6 | C9: You can make a copy of the ESL Calculator for each student (right click on the tab and select Move or Copy). Then change the name of each tab to the student's name.
B10: 7 | C10: Provide to auditor in electronic file.
B12: IMPORTANT INFORMATION
B14: • | C14: Orange highlighted cells indicate an area where the user should input data.
B15: • | C15: Blue highlighted cells indicate an area where the spreadsheet contains formulas and access is restricted.
B16: • | C16: Always record actual start and end times when student received ESL services with a qualified teacher or para during count week.
B17: • | C17: Minutes will compute automatically.
B18: • | C18: Provide a copy of each teacher's/para's schedule to the auditor.
B19: • | C19: When recording times, use normal clock time. There is no need to use military time. Don't use AM/PM.
B20: • | C20: Cutting data will cause formula errors in protected cells so we have disabled the cut function in the worksheet. Instead, copy and paste, then go back to original cell and delete data.
B21: • | C21: If the hashtag symbol (#) is being displayed in the spreadsheet, try adjusting the column width by dragging the column heading.
B23: EXAMPLES - ESL STUDENT CONTACT MINUTES CALCULATORS
B25: Example 1 | C25: ESL Calculator - 1 week
B26: Example 2 | C26: ESL Calculator - 2 week
A30: CTE Contact Minutes Calculator Updated 5/30/2024 Kansas leads the world in the success of each student.

Sheet ESL Calculator - 1 week
B2: ESL Student Contact Minutes - 1 week
B4: Use this calculator when the same services are scheduled every week.
B8: Student Name: | P8: USD:
B9: Student ID: | P9: School:
B10: Student Grade: | P10: Classroom Teacher:
B12: Provider Name: | L12: Provider Assignment: | T12: Provider Status: | AD12: Endorsed
AD13: Plan on File
AD14: PRAXIS
AD15: Paraprofessional
B24: 2024-09-16 | F24: 2024-09-17 | J24: 2024-09-18 | N24: 2024-09-19 | R24: 2024-09-20
B25: Provider | C25: Start Time | D25: End Time | E25: Min | F25: Provider | G25: Start Time | H25: End Time | I25: Min | J25: Provider | K25: Start Time | L25: End Time | M25: Min | N25: Provider | O25: Start Time | P25: End Time | Q25: Min | R25: Provider | S25: Start Time | T25: End Time | U25: Min | V25: District Notes
E26: =IF(C26>D26,(D26+0.5)-C26,D26-C26) -> 0 | I26: =IF(G26>H26,(H26+0.5)-G26,H26-G26) -> 0 | M26: =IF(K26>L26,(L26+0.5)-K26,L26-K26) -> 0 | Q26: =IF(O26>P26,(P26+0.5)-O26,P26-O26) -> 0 | U26: =IF(S26>T26,(T26+0.5)-S26,T26-S26) -> 0
E27: =IF(C27>D27,(D27+0.5)-C27,D27-C27) -> 0 | I27: 0 | M27: 0 | Q27: 0 | U27: 0
E28: =IF(C28>D28,(D28+0.5)-C28,D28-C28) -> 0 | I28: 0 | M28: 0 | Q28: 0 | U28: 0
E29: 0 | I29: 0 | M29: 0 | Q29: 0 | U29: 0
E30: 0 | I30: 0 | M30: 0 | Q30: 0 | U30: 0
E31: 0 | I31: 0 | M31: 0 | Q31: 0 | U31: 0
E32: 0 | I32: 0 | M32: 0 | Q32: 0 | U32: 0
E33: 0 | I33: 0 | M33: 0 | Q33: 0 | U33: 0
E34: 0 | I34: 0 | M34: 0 | Q34: 0 | U34: 0
E35: 0 | I35: 0 | M35: 0 | Q35: 0 | U35: 0
E36: =IF(C36>D36,(D36+0.5)-C36,D36-C36) -> 0 | I36: 0 | M36: 0 | Q36: 0 | U36: 0
E37: 0 | I37: 0 | M37: 0 | Q37: 0 | U37: 0
B38: Daily Total | E38: =SUM(E26:E37) -> 0 | F38: Daily Total | I38: =SUM(I26:I37) -> 0 | J38: Daily Total | M38: =SUM(M26:M37) -> 0 | N38: Daily Total | Q38: =SUM(Q26:Q37) -> 0 | R38: Daily Total | U38: =SUM(U26:U37) -> 0
V40: Weekly Total | X40: =SUM(E38:U38) -> 0
B41: I certify that I have firsthand knowledge that the information above is true and accurate.
R42: Average Daily Minutes (Enter this number in KIDS) | X42: =ROUND((X40/5)*1440,0)/1440 -> 0
B43: Signature | I43: Date
A54: CTE Contact Minutes Calculator Updated 5/30/2024 Kansas leads the world in the success of each student.

Sheet ESL Calculator - 2 week
B2: ESL Student Contact Minutes - 2 week
B4: Use this calculator when an every other week rotating schedule is used to provide services. Time must be entered into both weeks below for the formula to operate correctly.
B6: Student Name: | P6: USD:
B7: Student ID: | P7: School:
B8: Student Grade: | P8: Classroom Teacher:
B10: Provider Name: | L10: Provider Assignment: | T10: Provider Status: | AD10: Endorsed
AD11: Plan on File
AD12: PRAXIS
AD13: Paraprofessional
B22: 2024-09-16 | F22: 2024-09-17 | J22: 2024-09-18 | N22: 2024-09-19 | R22: 2024-09-20
B23: Provider | C23: Start Time | D23: End Time | E23: Min | F23: Provider | G23: Start Time | H23: End Time | I23: Min | J23: Provider | K23: Start Time | L23: End Time | M23: Min | N23: Provider | O23: Start Time | P23: End Time | Q23: Min | R23: Provider | S23: Start Time | T23: End Time | U23: Min | V23: District Notes
E24: =IF(C24>D24,(D24+0.5)-C24,D24-C24) -> 0 | I24: =IF(G24>H24,(H24+0.5)-G24,H24-G24) -> 0 | M24: =IF(K24>L24,(L24+0.5)-K24,L24-K24) -> 0 | Q24: =IF(O24>P24,(P24+0.5)-O24,P24-O24) -> 0 | U24: =IF(S24>T24,(T24+0.5)-S24,T24-S24) -> 0
E25: =IF(C25>D25,(D25+0.5)-C25,D25-C25) -> 0 | I25: 0 | M25: 0 | Q25: 0 | U25: 0
E26: =IF(C26>D26,(D26+0.5)-C26,D26-C26) -> 0 | I26: 0 | M26: 0 | Q26: 0 | U26: 0
E27: 0 | I27: 0 | M27: 0 | Q27: 0 | U27: 0
E28: 0 | I28: 0 | M28: 0 | Q28: 0 | U28: 0
E29: 0 | I29: 0 | M29: 0 | Q29: 0 | U29: 0
E30: 0 | I30: 0 | M30: 0 | Q30: 0 | U30: 0
E31: 0 | I31: 0 | M31: 0 | Q31: 0 | U31: 0
E32: 0 | I32: 0 | M32: 0 | Q32: 0 | U32: 0
E33: 0 | I33: 0 | M33: 0 | Q33: 0 | U33: 0
E34: =IF(C34>D34,(D34+0.5)-C34,D34-C34) -> 0 | I34: 0 | M34: 0 | Q34: 0 | U34: 0
E35: 0 | I35: 0 | M35: 0 | Q35: 0 | U35: 0
B36: Daily Total | E36: =SUM(E24:E35) -> 0 | F36: Daily Total | I36: =SUM(I24:I35) -> 0 | J36: Daily Total | M36: =SUM(M24:M35) -> 0 | N36: Daily Total | Q36: =SUM(Q24:Q35) -> 0 | R36: Daily Total | U36: =SUM(U24:U35) -> 0
V37: Weekly Total | X37: =SUM(E36:U36) -> 0
B40: 2024-09-23 | F40: 2024-09-25 | J40: 2024-09-26 | N40: 2024-09-27 | R40: 2024-09-28
B41: Provider | C41: Start Time | D41: End Time | E41: Min | F41: Provider | G41: Start Time | H41: End Time | I41: Min | J41: Provider | K41: Start Time | L41: End Time | M41: Min | N41: Provider | O41: Start Time | P41: End Time | Q41: Min | R41: Provider | S41: Start Time | T41: End Time | U41: Min | V41: District Notes
E42: =IF(C42>D42,(D42+0.5)-C42,D42-C42) -> 0 | I42: =IF(G42>H42,(H42+0.5)-G42,H42-G42) -> 0 | M42: =IF(K42>L42,(L42+0.5)-K42,L42-K42) -> 0 | Q42: =IF(O42>P42,(P42+0.5)-O42,P42-O42) -> 0 | U42: =IF(S42>T42,(T42+0.5)-S42,T42-S42) -> 0
E43: =IF(C43>D43,(D43+0.5)-C43,D43-C43) -> 0 | I43: 0 | M43: 0 | Q43: 0 | U43: 0
E44: =IF(C44>D44,(D44+0.5)-C44,D44-C44) -> 0 | I44: 0 | M44: 0 | Q44: 0 | U44: 0
E45: =IF(C45>D45,(D45+0.5)-C45,D45-C45) -> 0 | I45: 0 | M45: 0 | Q45: 0 | U45: 0
E46: 0 | I46: 0 | M46: 0 | Q46: 0 | U46: 0
E47: 0 | I47: 0 | M47: 0 | Q47: 0 | U47: 0
E48: 0 | I48: 0 | M48: 0 | Q48: 0 | U48: 0
E49: 0 | I49: 0 | M49: 0 | Q49: 0 | U49: 0
E50: 0 | I50: 0 | M50: 0 | Q50: 0 | U50: 0
E51: 0 | I51: 0 | M51: 0 | Q51: 0 | U51: 0
E52: =IF(C52>D52,(D52+0.5)-C52,D52-C52) -> 0 | I52: 0 | M52: 0 | Q52: 0 | U52: 0
E53: =IF(C53>D53,(D53+0.5)-C53,D53-C53) -> 0 | I53: 0 | M53: 0 | Q53: 0 | U53: 0
B54: Daily Total | E54: =SUM(E42:E53) -> 0 | F54: Daily Total | I54: =SUM(I42:I53) -> 0 | J54: Daily Total | M54: =SUM(M42:M53) -> 0 | N54: Daily Total | Q54: =SUM(Q42:Q53) -> 0 | R54: Daily Total | U54: =SUM(U42:U53) -> 0
V55: Weekly Total | X55: =SUM(E54:U54) -> 0
B57: I certify that I have firsthand knowledge that the information above is true and accurate.
Q58: Average Daily Minutes (Enter this number in KIDS) | X58: =ROUND(((X37+X55)/10)*1440,0)/1440 -> 0
B59: Signature | I59: Date
A70: CTE Contact Minutes Calculator Updated 5/30/2024 Kansas leads the world in the success of each student.

Sheet Example 1
B2: ESL Student Contact Minutes Calculator - 1 Week
B3: EXAMPLE 1
B4: Use this calculator when the same services are scheduled every week.
B8: Student Name: | E8: Skip A. Stone | P8: USD: | S8: 1011
B9: Student ID: | E9: 9999-0000 | P9: School: | S9: Oz Valley Elementary
B10: Student Grade: | E10: 5 | P10: Classroom Teacher: | S10: Martha Kent
B12: Provider Name: | D12: Martha Kent | L12: Provider Assignment: | O12: Classroom Teacher | T12: Provider Status: | W12: Plan on File | AD12: Endorsed
D13: Lexi Luther | O13: ESL Teacher | W13: Endorsed | AD13: Plan on File
D14: Matt Dillon | O14: ESL Para | W14: Paraprofessional | AD14: PRAXIS
D15: Gail D'Rothy | O15: Librarian | W15: PRAXIS | AD15: Paraprofessional
B24: 2020-09-21 | F24: 2020-09-22 | J24: 2020-09-23 | N24: 2020-09-24 | R24: 2020-09-25
B25: Provider | C25: Start Time | D25: End Time | E25: Min | F25: Provider | G25: Start Time | H25: End Time | I25: Min | J25: Provider | K25: Start Time | L25: End Time | M25: Min | N25: Provider | O25: Start Time | P25: End Time | Q25: Min | R25: Provider | S25: Start Time | T25: End Time | U25: Min | V25: District Notes
B26: MK | C26: 09:00:00 | D26: 11:31:00 | E26: =IF(C26>D26,(D26+0.5)-C26,D26-C26) -> 0.1048611111 | F26: MD | G26: 01:05:00 | H26: 02:05:00 | I26: =IF(G26>H26,(H26+0.5)-G26,H26-G26) -> 0.04166666667 | J26: MK | K26: 09:00:00 | L26: 11:31:00 | M26: =IF(K26>L26,(L26+0.5)-K26,L26-K26) -> 0.1048611111 | N26: GD | O26: 12:00:00 | P26: 12:35:00 | Q26: =IF(O26>P26,(P26+0.5)-O26,P26-O26) -> 0.02430555556 | R26: MK | S26: 09:00:00 | T26: 11:31:00 | U26: =IF(S26>T26,(T26+0.5)-S26,T26-S26) -> 0.1048611111
E27: =IF(C27>D27,(D27+0.5)-C27,D27-C27) -> 0 | I27: 0 | M27: 0 | Q27: 0 | U27: 0
B28: LL | C28: 12:00:00 | D28: 01:00:00 | E28: =IF(C28>D28,(D28+0.5)-C28,D28-C28) -> 0.04166666667 | I28: 0 | J28: LL | K28: 12:00:00 | L28: 01:00:00 | M28: 0.04166666667 | Q28: 0 | R28: LL | S28: 12:00:00 | T28: 01:00:00 | U28: 0.04166666667
E29: 0 | I29: 0 | M29: 0 | Q29: 0 | U29: 0
E30: 0 | I30: 0 | M30: 0 | Q30: 0 | U30: 0
E31: 0 | I31: 0 | M31: 0 | Q31: 0 | U31: 0
E32: 0 | I32: 0 | M32: 0 | Q32: 0 | U32: 0
E33: 0 | I33: 0 | M33: 0 | Q33: 0 | U33: 0
E34: 0 | I34: 0 | M34: 0 | Q34: 0 | U34: 0
E35: 0 | I35: 0 | M35: 0 | Q35: 0 | U35: 0
E36: =IF(C36>D36,(D36+0.5)-C36,D36-C36) -> 0 | I36: 0 | M36: 0 | Q36: 0 | U36: 0
E37: 0 | I37: 0 | M37: 0 | Q37: 0 | U37: 0
B38: Daily Total | E38: =SUM(E26:E37) -> 0.1465277778 | F38: Daily Total | I38: =SUM(I26:I37) -> 0.04166666667 | J38: Daily Total | M38: =SUM(M26:M37) -> 0.1465277778 | N38: Daily Total | Q38: =SUM(Q26:Q37) -> 0.02430555556 | R38: Daily Total | U38: =SUM(U26:U37) -> 0.1465277778
V40: Weekly Total | X40: =SUM(E38:U38) -> 0.5055555556
B41: I certify that I have firsthand knowledge that the information above is true and accurate.
B42: Jane Smith, ESL Director | I42: 2020-10-01 | R42: Average Daily Minutes (Enter this number in KIDS) | X42: =ROUND((X40/5)*1440,0)/1440 -> 0.1013888889
B43: Signature | I43: Date
A54: CTE Contact Minutes Calculator Updated 8/20/20 Kansas leads the world in the success of each student.

Sheet Example 2
B2: ESL Student Contact Minutes Calculator - 2 Week
B3: EXAMPLE 2
A4: ` | B4: Use this calculator when an every other week rotating schedule is used to provide services. Time must be entered into both weeks below for the formula to operate correctly.
B6: Student Name: | E6: Skip A. Stone | P6: USD: | S6: 1011
B7: Student ID: | E7: 9999-0000 | P7: School: | S7: Oz Valley Elementary
B8: Student Grade: | E8: 5 | P8: Classroom Teacher: | S8: Martha Kent
B10: Provider Name: | D10: Martha Kent | L10: Provider Assignment: | O10: Classroom Teacher | T10: Provider Status: | W10: Plan on File | AD10: Endorsed
D11: Lexi Luther | O11: ESL Teacher | W11: Endorsed | AD11: Plan on File
D12: Matt Dillon | O12: ESL Para | W12: Paraprofessional | AD12: PRAXIS
D13: Gail D'Rothy | O13: Librarian | W13: PRAXIS | AD13: Paraprofessional
B22: 2020-09-21 | F22: 2020-09-22 | J22: 2020-09-23 | N22: 2020-09-24 | R22: 2020-09-25
B23: Provider | C23: Start Time | D23: End Time | E23: Min | F23: Provider | G23: Start Time | H23: End Time | I23: Min | J23: Provider | K23: Start Time | L23: End Time | M23: Min | N23: Provider | O23: Start Time | P23: End Time | Q23: Min | R23: Provider | S23: Start Time | T23: End Time | U23: Min | V23: District Notes
E24: =IF(C24>D24,(D24+0.5)-C24,D24-C24) -> 0 | I24: =IF(G24>H24,(H24+0.5)-G24,H24-G24) -> 0 | M24: =IF(K24>L24,(L24+0.5)-K24,L24-K24) -> 0 | Q24: =IF(O24>P24,(P24+0.5)-O24,P24-O24) -> 0 | U24: =IF(S24>T24,(T24+0.5)-S24,T24-S24) -> 0
E25: =IF(C25>D25,(D25+0.5)-C25,D25-C25) -> 0 | I25: 0 | M25: 0 | Q25: 0 | U25: 0
B26: MK | C26: 10:35:00 | D26: 10:55:00 | E26: =IF(C26>D26,(D26+0.5)-C26,D26-C26) -> 0.01388888889 | I26: 0 | J26: MK | K26: 10:35:00 | L26: 10:55:00 | M26: 0.01388888889 | Q26: 0 | R26: MK | S26: 10:35:00 | T26: 10:55:00 | U26: 0.01388888889
E27: 0 | I27: 0 | M27: 0 | Q27: 0 | U27: 0
E28: 0 | I28: 0 | M28: 0 | N28: MD | O28: 11:00:00 | P28: 12:15:00 | Q28: 0.05208333333 | U28: 0
E29: 0 | I29: 0 | M29: 0 | Q29: 0 | U29: 0
E30: 0 | I30: 0 | M30: 0 | Q30: 0 | U30: 0
E31: 0 | F31: LL | G31: 02:30:00 | H31: 02:45:00 | I31: 0.01041666667 | M31: 0 | Q31: 0 | U31: 0
E32: 0 | I32: 0 | M32: 0 | Q32: 0 | U32: 0
E33: 0 | I33: 0 | M33: 0 | Q33: 0 | U33: 0
E34: =IF(C34>D34,(D34+0.5)-C34,D34-C34) -> 0 | I34: 0 | M34: 0 | Q34: 0 | U34: 0
E35: 0 | I35: 0 | M35: 0 | Q35: 0 | U35: 0
B36: Daily Total | E36: =SUM(E24:E35) -> 0.01388888889 | F36: Daily Total | I36: =SUM(I24:I35) -> 0.01041666667 | J36: Daily Total | M36: =SUM(M24:M35) -> 0.01388888889 | N36: Daily Total | Q36: =SUM(Q24:Q35) -> 0.05208333333 | R36: Daily Total | U36: =SUM(U24:U35) -> 0.01388888889
V37: Weekly Total | X37: =SUM(E36:U36) -> 0.1041666667
B40: 2020-09-28 | F40: 2020-09-29 | J40: 2020-09-30 | N40: 2020-10-01 | R40: 2020-10-02
B41: Provider | C41: Start Time | D41: End Time | E41: Min | F41: Provider | G41: Start Time | H41: End Time | I41: Min | J41: Provider | K41: Start Time | L41: End Time | M41: Min | N41: Provider | O41: Start Time | P41: End Time | Q41: Min | R41: Provider | S41: Start Time | T41: End Time | U41: Min | V41: District Notes
E42: =IF(C42>D42,(D42+0.5)-C42,D42-C42) -> 0 | I42: =IF(G42>H42,(H42+0.5)-G42,H42-G42) -> 0 | M42: =IF(K42>L42,(L42+0.5)-K42,L42-K42) -> 0 | Q42: =IF(O42>P42,(P42+0.5)-O42,P42-O42) -> 0 | U42: =IF(S42>T42,(T42+0.5)-S42,T42-S42) -> 0
E43: =IF(C43>D43,(D43+0.5)-C43,D43-C43) -> 0 | I43: 0 | M43: 0 | Q43: 0 | U43: 0
E44: =IF(C44>D44,(D44+0.5)-C44,D44-C44) -> 0 | I44: 0 | M44: 0 | Q44: 0 | U44: 0
E45: =IF(C45>D45,(D45+0.5)-C45,D45-C45) -> 0 | F45: MK | G45: 10:35:00 | H45: 10:55:00 | I45: 0.01388888889 | M45: 0 | N45: MK | O45: 10:35:00 | P45: 10:55:00 | Q45: 0.01388888889 | U45: 0
E46: 0 | I46: 0 | M46: 0 | Q46: 0 | U46: 0
E47: 0 | I47: 0 | M47: 0 | Q47: 0 | U47: 0
E48: 0 | I48: 0 | M48: 0 | Q48: 0 | U48: 0
B49: GD | C49: 01:30:00 | D49: 02:00:00 | E49: 0.02083333333 | I49: 0 | J49: LL | K49: 02:30:00 | L49: 02:45:00 | M49: 0.01041666667 | Q49: 0 | R49: LL | S49: 02:30:00 | T49: 02:45:00 | U49: 0.01041666667
E50: 0 | I50: 0 | M50: 0 | Q50: 0 | U50: 0
E51: 0 | I51: 0 | M51: 0 | Q51: 0 | U51: 0
E52: =IF(C52>D52,(D52+0.5)-C52,D52-C52) -> 0 | I52: 0 | M52: 0 | Q52: 0 | U52: 0
E53: =IF(C53>D53,(D53+0.5)-C53,D53-C53) -> 0 | I53: 0 | M53: 0 | Q53: 0 | U53: 0
B54: Daily Total | E54: =SUM(E42:E53) -> 0.02083333333 | F54: Daily Total | I54: =SUM(I42:I53) -> 0.01388888889 | J54: Daily Total | M54: =SUM(M42:M53) -> 0.01041666667 | N54: Daily Total | Q54: =SUM(Q42:Q53) -> 0.01388888889 | R54: Daily Total | U54: =SUM(U42:U53) -> 0.01041666667
V55: Weekly Total | X55: =SUM(E54:U54) -> 0.06944444444
B57: I certify that I have firsthand knowledge that the information above is true and accurate.
B58: Jane Smith, ESL Director | I58: 2020-10-01 | Q58: Average Daily Minutes (Enter this number in KIDS) | X58: =ROUND(((X37+X55)/10)*1440,0)/1440 -> 0.01736111111
B59: Signature | I59: Date
A70: CTE Contact Minutes Calculator Updated 8/20/20 Kansas leads the world in the success of each student.

Sheet ESL Worksheet Example (hidden)
B2: ESL Student Contact Minutes
B4: Student Name: | E4: Skip A. Stone | P4: USD: | S4: 1078
B5: Student ID: | E5: 9999 | P5: School: | S5: Oz Valley Elementary
B6: Student Grade: | E6: Kindergarten | P6: Classroom Teacher: | S6: Martha Kent
B8: Provider Name: | D8: Martha Kent | L8: Provider Assignment: | O8: Classroom Teacher | T8: Provider Status: | W8: Plan on File | AD8: Endorsed
D9: Lexi Luther | O9: ESL Teacher | W9: Endorsed | AD9: Plan on File
D10: Matt Dillon | O10: ESL Para | W10: PRAXIS | AD10: PRAXIS
D11: Gail D'Rothy | O11: Librarian | W11: Paraprofessional | AD11: Paraprofessional
B20: 2018-09-17 | F20: 2018-09-18 | J20: 2018-09-19 | N20: 2018-09-20 | R20: 2018-09-21
B21: Provider | C21: Start Time | D21: End Time | E21: Min | F21: Provider | G21: Start Time | H21: End Time | I21: Min | J21: Provider | K21: Start Time | L21: End Time | M21: Min | N21: Provider | O21: Start Time | P21: End Time | Q21: Min | R21: Provider | S21: Start Time | T21: End Time | U21: Min | V21: District Notes
B22: MK | C22: 09:00:00 | D22: 11:31:00 | E22: =IF(C22>D22,(D22+0.5)-C22,D22-C22) -> 0.1048611111 | F22: MD | G22: 01:05:00 | H22: 02:05:00 | I22: =IF(G22>H22,(H22+0.5)-G22,H22-G22) -> 0.04166666667 | J22: MK | K22: 09:00:00 | L22: 11:31:00 | M22: =IF(K22>L22,(L22+0.5)-K22,L22-K22) -> 0.1048611111 | N22: GD | O22: 12:00:00 | P22: 12:35:00 | Q22: =IF(O22>P22,(P22+0.5)-O22,P22-O22) -> 0.02430555556 | R22: MK | S22: 09:00:00 | T22: 11:31:00 | U22: =IF(S22>T22,(T22+0.5)-S22,T22-S22) -> 0.1048611111
B23: LL | C23: 12:00:00 | D23: 01:00:00 | E23: =IF(C23>D23,(D23+0.5)-C23,D23-C23) -> 0.04166666667 | I23: 0 | J23: LL | K23: 12:00:00 | L23: 01:00:00 | M23: =IF(K23>L23,(L23+0.5)-K23,L23-K23) -> 0.04166666667 | Q23: =IF(O23>P23,(P23+0.5)-O23,P23-O23) -> 0 | R23: LL | S23: 12:00:00 | T23: 01:00:00 | U23: =IF(S23>T23,(T23+0.5)-S23,T23-S23) -> 0.04166666667
E24: =IF(C24>D24,(D24+0.5)-C24,D24-C24) -> 0 | I24: 0 | M24: 0 | Q24: 0 | U24: 0
E25: 0 | I25: 0 | M25: 0 | Q25: 0 | U25: 0
E26: 0 | I26: 0 | M26: 0 | Q26: 0 | U26: 0
E27: 0 | I27: 0 | M27: 0 | Q27: 0 | U27: 0
E28: 0 | I28: 0 | M28: 0 | Q28: 0 | U28: 0
E29: 0 | I29: 0 | M29: 0 | Q29: 0 | U29: 0
E30: 0 | I30: 0 | M30: 0 | Q30: 0 | U30: 0
E31: 0 | I31: 0 | M31: 0 | Q31: 0 | U31: 0
E32: =IF(C32>D32,(D32+0.5)-C32,D32-C32) -> 0 | I32: 0 | M32: 0 | Q32: 0 | U32: 0
E33: 0 | I33: 0 | M33: 0 | Q33: 0 | U33: 0
B34: Daily Total | E34: =SUM(E22:E33) -> 0.1465277778 | F34: Daily Total | I34: =SUM(I22:I33) -> 0.04166666667 | J34: Daily Total | M34: =SUM(M22:M33) -> 0.1465277778 | N34: Daily Total | Q34: =SUM(Q22:Q33) -> 0.02430555556 | R34: Daily Total | U34: =SUM(U22:U33) -> 0.1465277778
V36: Weekly Total | X36: =SUM(E34:U34) -> 0.5055555556
B38: Lexi Luther | I38: 2018-09-28 | R38: Average Daily Minutes (Enter this number in KIDS) | X38: =ROUND((X36/5)*1440,0)/1440 -> 0.1013888889
B39: Signature | I39: Date
E53: Kansas State Department of Education
E54: Fiscal Auditing
E55: 785-296-4976 | U55: ESL Contact Minutes Calculator
E56: https://www.ksde.org/Agency/Fiscal-and-Administrative-Services/Fiscal-Auditing | U56: Updated 6/17/18

Sheet Formulas (hidden)
A1: Cell | B1: D22
A2: Heading | B2: Minutes
A3: Formula | B3: =IF(C22>D22,(D22+0.5)-C22,D22-C22)
A4: Translation | B4: If start time is greater than end time, add .5 to end time, then subtract from start time. If start time is not greater than end time, subtract starte time from end time.
A6: Cell | B6: E36
A7: Heading | B7: Daily Total
A8: Formula | B8: =SUM(E22:E33)
A9: Translation | B9: adds up all minutes served in the day
A11: Cell | B11: T39
A12: Heading | B12: Weekly Total
A13: Formula | B13: =SUM(E36:U36)
A14: Translation | B14: Adds up all the daily totals.
A16: Cell | B16: T42
A17: Heading | B17: Daily Average
A18: Formula | B18: =ROUND((T39/5)*1440,0)/1440
A19: Translation | B19: Weekly total minutes divided by 5 (to get average daily minutes), then converted from decimal to actual minutes and rounded
